bitfinex/quotes_BTCUSD_20250108
["timestamp","ask_amount","ask_price","bid_price","bid_amount"]
[1736355734601,0.04987733,94889.0,94880.0,0.1096704]
[1736355734965,0.03106916,94889.0,94880.0,0.1096704]
[1736355735171,0.02680492,94889.0,94880.0,0.1096704]
[1736355735757,0.13110468,94889.0,94880.0,0.1096704]
[1736355736009,0.13110468,94889.0,94888.0,0.0015]
[1736355736010,0.02680492,94889.0,94888.0,0.0015]
[1736355736215,0.00380492,94881.0,94880.0,0.1096704]
[1736355736501,0.00380492,94881.0,94855.0,0.0001704]
[1736355736502,0.00380492,94866.0,94864.0,0.06184]
[1736355736717,0.25643609,94866.0,94865.0,0.00067878]
[1736355737906,0.21462792,94866.0,94865.0,0.00067878]
[1736355738108,0.00680492,94866.0,94865.0,0.00067878]
[1736355738264,0.00680492,94866.0,94865.0,0.00693066]
[1736355738682,0.00380492,94866.0,94865.0,0.00693066]
[1736355738922,0.00980492,94866.0,94865.0,0.00793066]
[1736355739125,0.210792,94880.0,94865.0,0.00693066]
[1736355739335,0.00380492,94868.0,94865.0,0.00693066]
[1736355739501,0.00380492,94868.0,94866.0,0.00790173]
[1736355740163,0.00380492,94868.0,94865.0,0.00067878]
[1736355740362,0.002,94866.0,94865.0,0.00067878]
[1736355740576,0.002,94866.0,94865.0,0.10497854]
[1736355740775,0.002,94866.0,94865.0,0.10603262]
[1736355741030,0.001,94868.0,94865.0,0.10603262]
[1736355741204,0.001,94868.0,94866.0,0.12211168]
[1736355741407,0.001,94868.0,94866.0,0.12411168]
[1736355741751,0.00380492,94879.0,94866.0,0.12411168]
[1736355742202,0.00380492,94874.0,94866.0,0.12611168]
[1736355742428,0.00380492,94874.0,94866.0,0.12211168]
[1736355742631,0.00380492,94886.0,94867.0,0.02064712]
[1736355742943,0.00380492,94875.0,94868.0,0.10429976]
[1736355744330,0.00380492,94875.0,94865.0,0.00167878]
[1736355744331,0.00380492,94867.0,94865.0,0.00067878]
[1736355744503,0.00380492,94867.0,94866.0,0.06184]
[1736355744682,0.00380492,94866.0,94865.0,0.00067878]
[1736355744908,0.21462792,94866.0,94865.0,0.00067878]
[1736355746013,0.41047261,94866.0,94865.0,0.00067878]
[1736355746436,0.36782792,94866.0,94865.0,0.00067878]
[1736355746802,0.364023,94866.0,94865.0,0.00067878]
[1736355747004,0.36782792,94866.0,94865.0,0.00067878]
[1736355747673,0.36882792,94866.0,94865.0,0.00067878]
[1736355748061,0.84272828,94866.0,94865.0,0.00067878]
[1736355748264,1.06195978,94866.0,94865.0,0.00067878]
[1736355748441,1.06195978,94866.0,94865.0,7.8e-07]
[1736355748442,1.22001107,94866.0,94865.0,7.8e-07]
[1736355748675,1.22001107,94866.0,94855.0,0.0001704]
[1736355748676,0.23764992,94856.0,94855.0,0.0001704]
[1736355748909,1.04290868,94856.0,94855.0,0.00029345]
[1736355749110,1.069133,94856.0,94855.0,0.00029345]
[1736355749310,1.22164731,94856.0,94855.0,4.5e-07]
[1736355749533,0.35380492,94854.0,94853.0,8.5e-07]
[1736355749735,0.27680492,94851.0,94831.0,0.06188]
[1736355749911,0.38110468,94851.0,94831.0,0.06188]
[1736355750813,0.38810468,94851.0,94850.0,0.00104]
[1736355753405,0.28810468,94851.0,94850.0,0.00104]
[1736355753628,0.38810468,94851.0,94850.0,0.00104]
[1736355753851,0.49240444,94851.0,94850.0,0.00104]
[1736355754548,0.10380492,94845.0,94812.0,0.01031539]
[1736355754762,0.81169638,94845.0,94822.0,0.06188]
[1736355755660,0.70789146,94845.0,94822.0,0.06188]
[1736355755844,0.71169638,94845.0,94822.0,0.06188]
[1736355755998,0.71369638,94845.0,94822.0,0.06188]
[1736355756423,0.91799614,94845.0,94822.0,0.06188]
[1736355756825,0.81769638,94845.0,94822.0,0.06188]
[1736355758082,0.81769638,94845.0,94811.0,0.0001704]
[1736355758083,1.04399638,94845.0,94844.0,6e-07]
[1736355758258,1.07005298,94845.0,94844.0,6e-07]
[1736355758460,1.07005298,94845.0,94811.0,0.0001704]
[1736355758461,0.25380492,94843.0,94842.0,2e-07]
[1736355758681,0.25380492,94843.0,94834.0,8e-07]
[1736355758682,0.56399692,94835.0,94834.0,8e-07]
[1736355758860,1.14278909,94835.0,94834.0,3.3e-07]
[1736355759148,1.16141913,94835.0,94834.0,3.3e-07]
[1736355759556,1.05711937,94835.0,94834.0,3.3e-07]
[1736355759751,1.03807658,94835.0,94834.0,3.3e-07]
[1736355760055,1.16730457,94835.0,94834.0,3.3e-07]
[1736355760900,1.13807658,94835.0,94834.0,3.3e-07]
[1736355761103,0.25380492,94819.0,94818.0,9.3e-07]
[1736355761316,0.93762504,94819.0,94818.0,9.3e-07]
[1736355761717,1.03762504,94819.0,94818.0,9.3e-07]
[1736355762320,1.36222504,94819.0,94818.0,9.3e-07]
[1736355762735,0.27680492,94807.0,94806.0,3e-08]
[1736355762938,0.86367292,94801.0,94800.0,7e-08]
[1736355763142,1.47131131,94801.0,94800.0,7e-08]
[1736355763795,0.21485992,94762.0,94760.0,0.0001706]
[1736355764013,0.23785992,94762.0,94761.0,0.50654137]
[1736355764213,0.23785992,94762.0,94761.0,0.50872182]
[1736355765062,0.23785992,94762.0,94761.0,0.50922832]
[1736355765477,0.34085364,94762.0,94761.0,0.50922832]
[1736355765893,0.4451534,94762.0,94761.0,0.50704787]
[1736355766099,0.34215968,94762.0,94761.0,0.50704787]
[1736355766306,0.59215968,94762.0,94761.0,0.50804787]
[1736355766507,0.59215968,94762.0,94761.0,0.50704787]
[1736355766720,0.59215968,94762.0,94761.0,0.45983587]
[1736355766920,0.69715968,94762.0,94761.0,0.43872987]
[1736355767123,0.79645944,94762.0,94761.0,0.43872987]
[1736355767801,0.81581231,94762.0,94761.0,0.43872987]
[1736355767942,0.93233582,94762.0,94761.0,0.37541187]
[1736355768160,1.01553582,94762.0,94761.0,0.35430587]
[1736355768356,1.62620882,94762.0,94761.0,0.30584162]
[1736355768588,1.62694882,94762.0,94761.0,0.17120025]
[1736355768785,1.62694882,94762.0,94730.0,4e-05]
[1736355768786,0.85380492,94740.0,94730.0,4e-05]
[1736355768986,0.25380492,94731.0,94730.0,4e-05]
[1736355769188,0.38110468,94731.0,94730.0,4e-05]
[1736355769390,0.38110468,94731.0,94700.0,0.13966]
[1736355769391,0.02557707,94716.0,94700.0,0.06176]
[1736355769658,0.12729976,94715.0,94700.0,8e-05]
[1736355769874,0.211168,94711.0,94700.0,8e-05]
[1736355770305,0.00050659,94711.0,94704.0,0.57442293]
[1736355770525,0.00050659,94711.0,94707.0,0.07442293]
[1736355771338,0.00050659,94711.0,94709.0,0.07442293]
[1736355771557,0.00050659,94711.0,94710.0,0.19816293]
[1736355771762,0.00050659,94711.0,94710.0,0.25988293]
[1736355772174,0.00050659,94711.0,94710.0,0.26660121]
[1736355772587,0.00050659,94711.0,94710.0,0.26760121]
[1736355772794,0.00050659,94711.0,94710.0,0.26860121]
[1736355773000,0.00050659,94711.0,94710.0,0.47077959]
[1736355773202,0.00050659,94711.0,94710.0,0.46877959]
[1736355773414,0.00150659,94711.0,94710.0,0.26984063]
[1736355773628,0.00150659,94711.0,94710.0,0.19517828]
[1736355773832,0.00050659,94711.0,94710.0,0.19417828]
[1736355774007,0.00150659,94711.0,94710.0,0.1974177]
[1736355774212,0.00150659,94711.0,94710.0,0.07147828]
[1736355774416,0.00150659,94711.0,94710.0,0.00975828]
[1736355775538,0.00150659,94711.0,94710.0,0.00775828]
[1736355775690,0.00150659,94711.0,94710.0,0.01175828]
[1736355775895,0.00150659,94711.0,94710.0,0.01075828]
[1736355775896,0.27780635,94711.0,94710.0,0.01075828]
[1736355776091,0.27780635,94711.0,94710.0,0.00404]
[1736355776291,0.27880635,94711.0,94710.0,0.00104]
[1736355776694,0.27780635,94711.0,94710.0,0.00204]
[1736355777691,0.361182,94705.0,94704.0,0.5]
[1736355777887,0.48848176,94705.0,94704.0,0.5]
[1736355778116,0.5715556,94705.0,94704.0,0.5]
[1736355778316,0.48848176,94705.0,94704.0,0.5]
[1736355778520,0.56538176,94705.0,94704.0,0.5]
[1736355778961,0.48848176,94705.0,94704.0,0.5]
[1736355779177,0.51405883,94705.0,94704.0,0.5]
[1736355779579,0.51805883,94705.0,94704.0,0.5]
[1736355779796,0.62235859,94705.0,94704.0,0.5]
[1736355780000,0.63135859,94705.0,94704.0,0.5]
[1736355780251,0.81835859,94705.0,94704.0,0.39441]
[1736355780635,0.82735859,94705.0,94704.0,0.39980128]
[1736355780974,0.82735859,94705.0,94704.0,0.3377951]
[1736355780975,0.81835859,94705.0,94704.0,0.3377951]
[1736355781127,0.62305883,94705.0,94704.0,0.3166771]
[1736355781604,0.52305883,94705.0,94704.0,0.3166771]
[1736355781805,0.62305883,94705.0,94704.0,0.3166771]
[1736355782158,0.62305883,94705.0,94704.0,0.309938]
[1736355782360,0.220182,94705.0,94704.0,0.31532928]
[1736355782696,0.224182,94705.0,94704.0,0.3166771]
[1736355782917,0.47848176,94705.0,94704.0,0.3166771]
[1736355783115,0.47448176,94705.0,94704.0,0.2533231]
[1736355783319,0.47448176,94705.0,94704.0,0.2110871]
[1736355783320,1.02305883,94705.0,94704.0,0.2110871]
[1736355783548,0.46948176,94705.0,94704.0,0.204348]
[1736355783963,0.47448176,94705.0,94704.0,0.21108711]
[1736355784357,0.46948176,94705.0,94704.0,0.21108711]
[1736355784554,0.374182,94705.0,94704.0,0.21108711]
[1736355785322,0.374182,94705.0,94704.0,0.204348]
[1736355785544,0.374182,94705.0,94704.0,0.21108711]
[1736355785945,0.370182,94705.0,94704.0,0.21108711]
[1736355786392,0.7433981,94705.0,94704.0,0.21108711]
[1736355786550,0.7343981,94705.0,94704.0,0.21108711]
[1736355786751,0.7313981,94705.0,94704.0,0.204348]
[1736355787159,0.86569786,94705.0,94704.0,0.204348]
[1736355787362,0.96299762,94705.0,94704.0,0.204348]
[1736355787563,0.98857469,94705.0,94704.0,0.140994]
[1736355787769,1.00115968,94705.0,94704.0,0.140994]
[1736355788211,1.00115968,94705.0,94704.0,0.035404]
[1736355788540,0.89685992,94705.0,94704.0,0.035404]
[1736355788949,0.48676807,94701.0,94700.0,1e-06]
[1736355789089,0.56549076,94701.0,94700.0,1e-06]
[1736355789501,0.48849076,94701.0,94700.0,1e-06]
[1736355789885,0.211191,94701.0,94700.0,1e-06]
[1736355790617,0.215191,94701.0,94700.0,1e-06]
[1736355791063,0.211191,94701.0,94700.0,1e-06]
[1736355791467,0.214191,94701.0,94700.0,1e-06]
[1736355791881,0.211198,94698.0,94695.0,0.00194634]
[1736355792306,0.422396,94698.0,94695.0,0.00082634]
[1736355792650,0.234202,94696.0,94695.0,0.00082634]
[1736355792858,0.33850176,94696.0,94695.0,0.00082634]
[1736355793066,0.211202,94696.0,94695.0,0.00082634]
[1736355793271,0.211211,94692.0,94691.0,0.00136514]
[1736355793729,0.211211,94692.0,94691.0,0.00024514]
[1736355794340,0.211211,94692.0,94688.0,0.07354807]
[1736355794539,0.213202,94696.0,94689.0,0.00679118]
[1736355794705,0.002,94696.0,94695.0,0.07354807]
[1736355794902,0.002,94696.0,94695.0,0.08031842]
[1736355795108,0.004,94698.0,94695.0,0.08031842]
[1736355795329,0.004,94698.0,94695.0,0.07354807]
[1736355795541,0.211196,94699.0,94695.0,0.07354807]
[1736355795739,0.211187,94703.0,94697.0,0.076]
[1736355795913,0.211181,94706.0,94700.0,0.07354807]
[1736355796113,0.21167559,94711.0,94706.0,0.07354807]
[1736355796543,0.00050659,94711.0,94710.0,0.07354807]
[1736355796755,0.00050659,94711.0,94710.0,0.00671828]
[1736355796955,0.00050659,94711.0,94710.0,0.08026635]
[1736355797207,0.00050659,94711.0,94710.0,0.07354807]
[1736355797381,0.00050659,94711.0,94710.0,0.08026635]
[1736355797818,0.00050659,94711.0,94710.0,0.00671828]
[1736355798020,0.00050659,94711.0,94710.0,0.08026635]
[1736355798225,0.00050659,94711.0,94707.0,0.10429976]
[1736355798226,0.00050659,94711.0,94706.0,0.07354807]
[1736355798440,0.21167459,94711.0,94710.0,0.00671828]
[1736355798644,0.00050659,94711.0,94710.0,0.001]
[1736355798849,0.21167459,94711.0,94710.0,0.001]
[1736355799234,0.00050659,94711.0,94710.0,0.08815088]
[1736355799438,0.00150659,94711.0,94710.0,0.08815088]
[1736355799646,0.00050659,94711.0,94710.0,0.01918609]
[1736355799851,0.00050659,94711.0,94710.0,0.00670328]
[1736355800055,0.00050659,94711.0,94710.0,0.00558328]
[1736355800291,0.211184,94704.0,94703.0,0.06148]
[1736355800711,0.211184,94704.0,94703.0,0.06806758]
[1736355800941,0.211184,94704.0,94703.0,0.00658758]
[1736355801115,0.211184,94704.0,94701.0,0.07354807]
[1736355801319,0.211184,94704.0,94702.0,0.00659105]
[1736355801547,0.00050659,94711.0,94710.0,0.07354807]
[1736355801684,0.00050659,94711.0,94710.0,0.20431135]
[1736355801892,0.00050659,94711.0,94710.0,0.37009111]
[1736355802122,0.0001708,94743.0,94742.0,0.07354807]
[1736355802321,0.00025641,94743.0,94742.0,0.00860301]
[1736355802526,0.00025641,94743.0,94742.0,0.07354807]
[1736355802722,0.00025641,94743.0,94742.0,0.08215108]
[1736355803473,0.21135341,94743.0,94742.0,0.00860301]
[1736355803673,0.21135341,94743.0,94742.0,0.00645226]
[1736355803791,0.211106,94739.0,94738.0,0.045]
[1736355803996,0.21135341,94743.0,94738.0,0.045]
[1736355804201,0.21135341,94743.0,94740.0,0.07354807]
[1736355804404,0.21135441,94743.0,94740.0,0.07354807]
[1736355804793,0.42345241,94743.0,94741.0,0.00860763]
[1736355805019,0.42645241,94743.0,94741.0,0.00645572]
[1736355805219,0.42245241,94743.0,94741.0,0.00645572]
[1736355805459,0.211119,94733.0,94730.0,0.06148]
[1736355805686,0.211119,94733.0,94730.0,0.13502807]
[1736355805895,0.422239,94733.0,94731.0,0.00649041]
[1736355806099,0.211119,94733.0,94731.0,0.00649041]
[1736355806301,0.422218,94738.0,94737.0,0.07354807]
[1736355806508,0.211109,94738.0,94737.0,0.07354807]
[1736355806927,0.00425641,94743.0,94740.0,0.07354807]
[1736355807143,0.00425641,94743.0,94742.0,0.15144807]
[1736355807352,0.00125641,94743.0,94742.0,0.00860301]
[1736355807535,0.00025641,94743.0,94738.0,0.07354807]
[1736355807725,0.001,94733.0,94732.0,0.15144807]
[1736355807866,0.211099,94742.0,94732.0,0.17771088]
[1736355809195,0.211102,94741.0,94740.0,0.07354807]
[1736355809988,0.212101,94742.0,94740.0,0.07354807]
[1736355810819,0.213101,94742.0,94741.0,0.07900379]
[1736355811021,0.211101,94742.0,94741.0,0.07900379]
[1736355811430,0.213101,94742.0,94741.0,0.07900379]
[1736355811828,0.00025641,94743.0,94742.0,0.07254807]
[1736355812257,0.00025641,94743.0,94742.0,0.07900033]
[1736355812461,0.00025641,94743.0,94742.0,0.09304836]
[1736355812674,0.00025641,94743.0,94742.0,0.00645226]
[1736355813090,0.422198,94742.0,94736.0,0.06148]
[1736355813292,0.21111,94737.0,94736.0,0.06148]
[1736355813907,0.21111,94737.0,94736.0,0.06036]
[1736355814429,0.21111,94737.0,94736.0,0.13290807]
[1736355814675,0.211101,94741.0,94736.0,0.13178807]
[1736355814884,0.21135341,94743.0,94737.0,0.02096881]
[1736355815085,0.00025641,94743.0,94742.0,0.07254807]
[1736355815285,0.00025641,94743.0,94742.0,0.07142807]
[1736355815803,0.00025641,94743.0,94742.0,0.07030807]
[1736355816016,0.00025641,94743.0,94736.0,0.001]
[1736355816226,0.00025641,94743.0,94737.0,0.06144]
[1736355816429,0.211104,94740.0,94737.0,0.06032]
[1736355816674,0.211104,94740.0,94738.0,0.00646613]
[1736355817121,0.211104,94740.0,94737.0,0.06032]
[1736355817348,0.211104,94740.0,94738.0,0.00843484]
[1736355817550,0.211104,94740.0,94739.0,0.08431436]
[1736355817755,0.211104,94740.0,94739.0,0.09274458]
[1736355817959,0.211104,94740.0,94739.0,0.07873829]
[1736355818209,0.00125641,94743.0,94742.0,0.07030807]
[1736355818383,0.00025641,94743.0,94742.0,0.07030807]
[1736355818592,0.00025641,94743.0,94742.0,0.07972441]
[1736355819006,0.00025641,94743.0,94742.0,0.00841634]
[1736355819440,0.211108,94738.0,94737.0,0.06032]
[1736355819858,0.211124,94731.0,94726.0,0.06144]
[1736355820065,0.211125,94731.0,94726.0,0.06144]
[1736355820266,0.211125,94731.0,94727.0,0.00736572]
[1736355820516,0.15,94728.0,94727.0,0.00736572]
[1736355820725,0.15,94728.0,94713.0,0.07030807]
[1736355820726,0.211185,94704.0,94700.0,4e-05]
[1736355820957,0.211185,94704.0,94683.0,0.0945012]
[1736355820958,0.15,94701.0,94672.0,0.0945712]
[1736355821163,0.15,94701.0,94666.0,25.0000853]
[1736355821164,0.023,94699.0,94666.0,18.1748905]
[1736355821373,0.211266,94667.0,94666.0,14.5615165]
[1736355821583,2.13182332,94667.0,94666.0,13.66238385]
[1736355821828,3.30199388,94667.0,94666.0,8.874956]
[1736355822040,3.30199388,94667.0,94666.0,7.75199694]
[1736355822041,4.59887333,94667.0,94666.0,7.75199694]
[1736355822269,5.04069388,94667.0,94666.0,5.89108741]
[1736355822526,5.08219388,94667.0,94666.0,1.74228201]
[1736355822735,5.08219388,94667.0,94592.0,0.09450041]
[1736355822736,0.1,94622.0,94592.0,0.09450041]
[1736355822943,0.1,94622.0,94550.0,0.98964225]
[1736355822944,0.02159673,94551.0,94550.0,0.98964225]
[1736355823187,0.211568,94532.0,94528.0,0.0293171]
[1736355823398,0.12146969,94529.0,94528.0,0.0249171]
[1736355823617,0.02146969,94501.0,94500.0,0.25766347]
[1736355823844,0.39251479,94501.0,94500.0,0.25766347]
[1736355824050,0.32192153,94501.0,94500.0,0.22110083]
[1736355824256,0.32192153,94501.0,94500.0,0.21191334]
[1736355824257,3.93802165,94501.0,94500.0,0.21191334]
[1736355824532,3.93802165,94501.0,94500.0,0.31116391]
[1736355824533,4.78212251,94501.0,94500.0,0.31116391]
[1736355824758,4.95797347,94501.0,94500.0,0.31116391]
[1736355824980,4.71239894,94501.0,94500.0,0.00725086]
[1736355825190,4.35536583,94501.0,94500.0,0.10725086]
[1736355825403,4.35536583,94501.0,94449.0,1.49795422]
[1736355825404,2.96773629,94501.0,94449.0,1.49795422]
[1736355825607,0.10429976,94491.0,94452.0,0.082]
[1736355825820,0.10429976,94491.0,94470.0,0.2991297]
[1736355826036,0.1,94483.0,94471.0,0.0484]
[1736355826234,2.55805706,94501.0,94481.0,0.2991297]
[1736355826235,2.54905706,94501.0,94481.0,0.2991297]
[1736355826443,2.56405706,94501.0,94491.0,0.2991297]
[1736355826653,0.4,94536.0,94491.0,0.2991297]
[1736355826654,0.1,94514.0,94493.0,0.0825]
[1736355826855,0.1,94465.0,94464.0,0.07707836]
[1736355827061,0.423425,94468.0,94464.0,0.07707836]
[1736355827272,0.423425,94468.0,94464.0,0.06288776]
[1736355827273,0.3712682,94465.0,94464.0,0.06288776]
[1736355827495,0.1,94506.0,94449.0,1.49695926]
[1736355827694,0.01656674,94559.0,94449.0,1.49695926]
[1736355827695,0.1,94490.0,94470.0,0.2991297]
[1736355827903,0.13446991,94465.0,94450.0,0.10590566]
[1736355828103,0.10429976,94489.0,94450.0,0.0989161]
[1736355828325,0.10429976,94489.0,94479.0,0.28597023]
[1736355828552,3.56600412,94489.0,94479.0,0.29626863]
[1736355828742,3.56600412,94489.0,94480.0,0.15]
[1736355829157,2.2217881,94488.0,94481.0,0.04556]
[1736355829358,3.54077159,94513.0,94481.0,0.04556]
[1736355829571,3.54077159,94513.0,94504.0,0.11257084]
[1736355829977,2.04085365,94513.0,94504.0,0.11257084]
[1736355830184,2.04085365,94513.0,94503.0,0.29626863]
[1736355830402,2.04085365,94513.0,94504.0,0.0825]
[1736355830814,0.54105365,94513.0,94505.0,0.211629]
[1736355831064,6.30193438,94512.0,94511.0,0.1]
[1736355831251,5.16526206,94512.0,94511.0,0.1]
[1736355831468,3.26205596,94512.0,94511.0,0.1]
[1736355831671,2.25975596,94512.0,94511.0,0.1]
[1736355831877,1.97125064,94512.0,94511.0,0.1]
[1736355832100,0.30926563,94524.0,94523.0,0.2084777]
[1736355832320,0.30926563,94524.0,94503.0,0.30796863]
[1736355832524,0.30926563,94528.0,94525.0,0.15]
[1736355832727,0.0001712,94539.0,94527.0,0.14996]
[1736355832939,0.0001712,94539.0,94538.0,0.211555]
[1736355833367,0.45101238,94568.0,94558.0,0.59253726]
[1736355833574,0.042353,94579.0,94577.0,0.211467]
[1736355833781,0.1,94599.0,94577.0,0.211467]
[1736355833987,0.1,94599.0,94586.0,0.26186283]
[1736355834196,0.1,94599.0,94518.0,0.211598]
[1736355834197,0.003,94539.0,94523.0,0.211588]
[1736355834399,0.1,94584.0,94500.0,0.66190461]
[1736355834600,0.04235,94595.0,94506.0,0.023]
[1736355834839,0.04235,94595.0,94508.0,0.173]
[1736355835032,0.04235,94595.0,94586.0,0.15]
[1736355835241,0.04235,94595.0,94585.0,0.26145111]
[1736355835242,0.1,94593.0,94585.0,0.26145111]
[1736355835439,0.1,94582.0,94570.0,0.26145111]
[1736355835649,0.04235,94595.0,94570.0,0.00015263]
[1736355835650,0.1,94578.0,94570.0,0.00015263]
[1736355836026,0.1,94579.0,94570.0,0.00015263]
[1736355836027,0.223,94571.0,94570.0,0.00015263]
[1736355836628,0.1,94573.0,94570.0,0.00115263]
[1736355836827,0.1,94574.0,94570.0,0.00115263]
[1736355837078,0.03,94572.0,94571.0,0.211481]
[1736355837376,0.03,94572.0,94570.0,0.00015263]
[1736355837581,0.03,94572.0,94571.0,0.361481]
[1736355837989,0.1,94589.0,94571.0,0.15]
[1736355838163,0.1,94589.0,94570.0,0.00015263]
[1736355838164,0.1,94586.0,94570.0,0.00015263]
[1736355838367,0.04235,94595.0,94570.0,0.00015263]
[1736355838368,0.1,94580.0,94570.0,0.00015263]
[1736355839001,0.2,94571.0,94570.0,0.00015263]
[1736355839340,0.1,94573.0,94570.0,0.00015263]
[1736355839539,0.211436,94592.0,94570.0,0.00015263]
[1736355839540,0.1,94588.0,94570.0,0.00015263]
[1736355839749,0.006,94574.0,94570.0,0.21263463]
[1736355839973,0.2,94586.0,94571.0,0.15]
[1736355840153,0.2,94583.0,94571.0,0.15]
[1736355840588,0.1,94583.0,94575.0,0.15]
[1736355840942,0.04235,94595.0,94575.0,0.15]
[1736355841165,0.04235,94595.0,94570.0,0.00115263]
[1736355841433,0.04235,94595.0,94583.0,0.15]
[1736355841581,0.04235,94595.0,94582.0,0.211456]
[1736355842339,0.1,94593.0,94582.0,0.211456]
[1736355842538,0.1,94593.0,94574.0,0.15]
[1736355842760,0.003,94583.0,94574.0,0.15]
[1736355842976,0.04235,94595.0,94574.0,0.15]
[1736355843391,0.04735,94595.0,94583.0,0.211453]
[1736355843597,0.04735,94595.0,94582.0,0.001]
[1736355843802,0.2,94594.0,94574.0,0.0085314]
[1736355844007,0.2,94582.0,94574.0,0.0095314]
[1736355844216,0.1,94582.0,94574.0,0.001]
[1736355844400,0.1,94582.0,94570.0,0.008706]
[1736355844806,0.1,94581.0,94570.0,0.00015263]
[1736355845128,0.1,94572.0,94570.0,0.00015263]
[1736355845449,0.3311,94571.0,94570.0,0.00015263]
[1736355845767,0.3541,94571.0,94570.0,0.00015263]
[1736355846381,0.3541,94571.0,94570.0,0.00115263]
[1736355846780,0.30394209,94571.0,94570.0,0.00015263]
[1736355846988,0.40394209,94571.0,94570.0,0.00015263]
[1736355847281,0.41294209,94571.0,94570.0,0.00115263]
[1736355847511,0.223,94551.0,94550.0,4e-05]
[1736355847708,0.223,94551.0,94550.0,0.00019221]
[1736355848089,0.2,94551.0,94550.0,0.00019221]
[1736355848413,0.20987967,94571.0,94550.0,0.00019221]
[1736355848414,0.1,94555.0,94550.0,0.00019221]
[1736355848605,0.04984209,94551.0,94550.0,0.00019221]
[1736355849345,0.27284209,94551.0,94550.0,0.00019221]
[1736355849883,0.24984209,94551.0,94550.0,0.00019221]
[1736355850090,0.26977967,94551.0,94550.0,0.00019221]
[1736355850293,0.16977967,94551.0,94550.0,0.00019221]
[1736355850467,0.06977967,94551.0,94550.0,0.00019221]
[1736355850880,0.07777967,94551.0,94550.0,0.00019221]
[1736355851482,0.06977967,94551.0,94550.0,0.00019221]
[1736355851888,0.01027726,94555.0,94550.0,0.62317132]
[1736355852087,0.03,94552.0,94551.0,0.15]
[1736355852297,0.1,94594.0,94550.0,0.26832432]
[1736355852469,0.0001712,94596.0,94577.0,0.15]
[1736355852671,0.0001712,94596.0,94560.0,0.26145111]
[1736355852672,0.0001712,94596.0,94561.0,0.211503]
[1736355852871,0.0001712,94596.0,94564.0,0.15]
[1736355853097,0.0001712,94596.0,94575.0,0.15]
[1736355853332,0.0001712,94596.0,94595.0,0.361427]
[1736355853960,0.0001712,94596.0,94564.0,0.0012]
[1736355853961,0.0001712,94596.0,94588.0,0.211443]
[1736355854160,0.0001712,94612.0,94608.0,0.211397]
[1736355854398,0.0001712,94612.0,94606.0,0.211402]
[1736355854616,0.00067695,94612.0,94599.0,0.211416]
[1736355855099,0.00067695,94612.0,94606.0,0.211401]
[1736355855508,0.00067695,94612.0,94606.0,0.422803]
[1736355855697,0.00067695,94612.0,94608.0,0.211398]
[1736355855916,0.00067695,94612.0,94611.0,0.15]
[1736355855917,0.00167695,94612.0,94611.0,0.15]
[1736355856104,0.00167695,94612.0,94611.0,0.15105655]
[1736355856495,0.00167695,94612.0,94599.0,0.0137484]
[1736355856817,0.00167695,94612.0,94600.0,0.00105677]
[1736355857189,0.00167695,94612.0,94601.0,0.211414]
[1736355857190,0.00067695,94612.0,94601.0,0.211414]
[1736355857399,0.00167695,94612.0,94606.0,0.004]
[1736355857598,0.00167695,94612.0,94607.0,0.0010567]
[1736355857817,0.1,94643.0,94610.0,0.15]
[1736355858027,0.1,94643.0,94618.0,0.211374]
[1736355858264,0.1,94643.0,94619.0,0.0010566]
[1736355858657,0.211295,94655.0,94619.0,0.0010566]
[1736355858658,0.1494,94647.0,94619.0,0.0010566]
[1736355858906,0.0494,94647.0,94620.0,0.211371]
[1736355859120,0.1,94641.0,94607.0,0.00015221]
[1736355859330,0.1,94615.0,94607.0,0.00015221]
[1736355860393,0.1,94619.0,94607.0,0.00015221]
[1736355860605,0.1,94615.0,94607.0,0.00015221]
[1736355861278,0.1,94608.0,94607.0,0.00315221]
[1736355861521,0.2,94608.0,94607.0,0.00315221]
[1736355861945,0.3228,94608.0,94607.0,0.00315221]
[1736355862601,0.3458,94608.0,94607.0,0.00315221]
[1736355863035,0.2458,94608.0,94607.0,0.00315221]
[1736355863239,0.1228,94608.0,94607.0,0.00315221]
[1736355863422,0.1228,94608.0,94607.0,0.00015221]
[1736355863774,0.15696416,94608.0,94607.0,0.00015221]
[1736355863985,0.16642822,94608.0,94607.0,0.00015221]
[1736355864176,0.16642822,94608.0,94607.0,0.00705056]
[1736355864379,0.04862822,94608.0,94607.0,0.00015221]
[1736355864605,0.01730942,94608.0,94607.0,0.00015221]
[1736355864783,0.1,94627.0,94609.0,0.15]
[1736355864980,0.1,94633.0,94610.0,0.00105671]
[1736355865189,0.1,94632.0,94610.0,0.00105671]
[1736355865412,0.0468,94634.0,94610.0,0.00105671]
[1736355865413,0.1,94633.0,94610.0,0.00105671]
[1736355865614,0.01948085,94626.0,94610.0,0.00105671]
[1736355866161,0.01948085,94626.0,94607.0,0.00015221]
[1736355866343,0.01948085,94626.0,94611.0,0.0010567]
[1736355867348,0.10778955,94632.0,94613.0,0.15]
[1736355867545,0.001,94626.0,94614.0,0.00105669]
[1736355867921,0.10778955,94632.0,94614.0,0.00105669]
[1736355868114,0.0522,94632.0,94615.0,0.00105663]
[1736355868407,0.0468,94634.0,94617.0,0.15]
[1736355868534,0.0822712,94646.0,94621.0,0.15]
[1736355868850,0.0822712,94646.0,94631.0,0.15]
[1736355868981,0.0822712,94646.0,94632.0,0.00105651]
[1736355869594,0.0822712,94646.0,94631.0,0.15]
[1736355869595,0.1,94642.0,94631.0,0.15]
[1736355869797,0.0522,94632.0,94615.0,0.00105648]
[1736355870213,0.0822712,94646.0,94615.0,0.00105648]
[1736355870421,0.0522,94639.0,94617.0,0.15]
[1736355870681,0.0522,94639.0,94618.0,0.00105661]
[1736355870881,0.0522,94639.0,94620.0,0.15]
[1736355871082,0.0522,94639.0,94621.0,0.00105656]
[1736355871317,0.0522,94642.0,94621.0,0.00105656]
[1736355871493,0.0522,94639.0,94621.0,0.00105656]
[1736355872068,0.0522,94619.0,94615.0,0.00659742]
[1736355872278,0.0522,94612.0,94610.0,0.0005]
[1736355872653,0.1,94614.0,94610.0,0.0073628]
[1736355872654,0.0522,94611.0,94610.0,0.0073628]
[1736355872853,0.0522,94611.0,94610.0,0.0005]
[1736355873214,0.2544,94611.0,94610.0,0.0005]
[1736355873624,0.1314,94611.0,94610.0,0.0005]